Cogmind - Beta 15 *** ADVENTURER MODE // 2025.07.26 @ 09:50:13 Player: LegoMDS Result: Destroyed by G-50 Soldier with Heavy Laser Performance ------------- Evolutions (4) 2000 Regions Visited (5) 1000 Robots Destroyed (25) 125 Value Destroyed (1118) 1118 Prototype IDs (7) 140 Alien Tech Used (0) 0 Bonus (814) 814 TOTAL SCORE: 5197 Bonus ------- Follower Combat Kills 14 Registered with UFD 300 Met Optimus in HQ 500 Cogmind --------- Core Integrity 0/850 Matter 58/300 Energy 80/100 System Corruption 2% Temperature Cool (9) Movement Walking (120) Location -6/Factory Parts ------- > --- POWER (2) -------- (None) > --- PROPULSION (4) --- Carbon-fiber Leg > --- UTILITY (7) ------ (None) > --- WEAPON (2) ------- Companion Sword > --- INVENTORY (5) ---- Micro Nuclear Core Flexi-carbon Leg Energy Well (350) System Shield Peak State ------------ > --- POWER ------------ Improved Ion Engine Improved Deuterium Engine > --- PROPULSION ------- Aluminum Leg Aluminum Leg > --- UTILITY ---------- Improved Heat Sink Small Storage Unit Experimental Signal Interpreter Improved Reaction Control System Phase Shifter Improved Shield Generator A0-MCA's Component Scanner > --- WEAPON ----------- Missile Launcher Companion Sword > --- INVENTORY -------- Energy Well System Shield Scrapoid Pod Subdweller Shrapnel Launcher [Rating: 54] Favorites ----------- Power Improved Ion Engine Engine Improved Ion Engine Power Core Light Nuclear Core Propulsion Aluminum Leg Leg Aluminum Leg Utility Small Storage Unit Device Improved Heat Sink Storage Small Storage Unit Processor Signal Interpreter Weapon Companion Sword Energy Gun Particle Gun Ballistic Gun Light Assault Rifle Ballistic Cannon Battle Cannon Launcher Missile Launcher Slashing Weapon Companion Sword Build | -11 -10 -10 -10 -9 -6 ------- Run | Yrd Mat Min Sub Scr Fac Slots Evolved 8 | . . . . . 8 Power 1 | . . . . . 1 Propulsion 2 | . . . . . 2 Utility 5 | . . . . . 5 Weapon . | . . . . . . Parts Attached 35 | 6 1 5 5 4 14 Power 7 | 1 . 1 2 1 2 Engine 6 | 1 . 1 1 1 2 Core 1 | . . . 1 . . Reactor . | . . . . . . Propulsion 8 | 2 . 3 1 . 2 Treads . | . . . . . . Leg 8 | 2 . 3 1 . 2 Wheel . | . . . . . . Hover . | . . . . . . Flight . | . . . . . . Utility 11 | 1 1 . . 1 8 Device 7 | . . . . 1 6 Storage 1 | 1 . . . . . Processor 3 | . 1 . . . 2 Hackware . | . . . . . . Protection . | . . . . . . Artifact . | . . . . . . Weapon 9 | 2 . 1 2 2 2 Energy Gun 1 | . . 1 . . . Energy Cannon . | . . . . . . Ballistic Gun 3 | 2 . . 1 . . Ballistic Cannon 2 | . . . 1 . 1 Launcher 2 | . . . . 1 1 Special Weapon . | . . . . . . Impact Weapon . | . . . . . . Slashing Weapon 1 | . . . . 1 . Piercing Weapon . | . . . . . . Special Melee Weapon . | . . . . . . Unidentified Prototypes 1 | . . . . 1 . Parts Lost 15 | . . . 1 . 14 Power 3 | . . . 1 . 2 Propulsion 3 | . . . . . 3 Utility 8 | . . . . . 8 Weapon 1 | . . . . . 1 Highest Loss Streak 10 | . . . 1 . 10 To Critical Strikes . | . . . . . . Average Backups 6 | 1 2 7 7 6 4 Power . | . 1 1 . . . Propulsion . | . . 2 2 . . Utility 2 | . . 1 2 3 1 Weapon 1 | . 1 1 2 2 1 Tool/Special . | . . . . . . Unused Backups 11 | . . 3 . 4 4 Power 1 | . . . . . 1 Propulsion 2 | . . 1 . . 1 Utility 4 | . . 1 . 1 2 Weapon 4 | . . 1 . 3 . Tool/Special . | . . . . . . Average Slot Usage (%) 88 | . 94 100 99 94 65 Engine 12 | . 14 14 12 14 7 Leg 23 | . 28 28 28 28 9 Device 7 | . . . . 8 18 Storage 11 | . 14 14 14 14 4 Processor 8 | . 9 14 14 2 12 Energy Gun 3 | . . 10 12 . . Ballistic Gun 8 | . 28 17 14 5 . Ballistic Cannon 2 | . . . 1 5 . Launcher 3 | . . . . 5 2 Slashing Weapon 5 | . . . . 8 6 Peak Build Rating 54 | 6 7 9 12 21 54 Average Rating 20 | 4 6 8 9 16 45 On Entrance 9 | . 6 7 9 11 21 Naked Turns . | . . . . . . Heaviest Build 40 | 11 11 12 15 23 40 Greatest Support 20 | 20 20 20 20 20 20 Greatest Overweight (x) 10 | . . . . 1 10 Average Overweight (x) . | . . . . . 1 Largest Inventory Capacity 8 | 8 8 8 8 8 8 Average Capacity 7 | 6 8 8 8 8 7 Most Carried 8 | 5 3 8 8 8 8 Average Carried 6 | 1 2 7 7 7 5 Final Capacity 8 | 8 8 8 8 8 5 Final Carried 8 | 2 3 8 8 8 4 Class Distribution -------------------- 100% | Mutant Dominant Class ---------------- Mutant | -10/Materials Mutant | -10/Mines Mutant | -10/Subcaves Mutant | -9/Scraptown Mutant | -6/Factory Resources | -11 -10 -10 -10 -9 -6 ----------- Run | Yrd Mat Min Sub Scr Fac Matter Collected 754 | 182 . 253 69 50 200 Remotely . | . . . . . . Salvage Created 1144 | . 95 305 91 . 653 Parts 58 | . 1 18 8 . 31 Haulers Intercepted . | . . . . . . Recyclers Shooed . | . . . . . . Parts Field Recycled . | . . . . . . Retrieved Matter . | . . . . . . Parts Self-Destructed 7 | . . . 7 . . Prevented . | . . . . . . Kills | -11 -10 -10 -10 -9 -6 ------- Run | Yrd Mat Min Sub Scr Fac Combat Hostiles Destroyed 24 | . 2 7 2 . 13 Melee 9 | . . . . . 9 Guns 11 | . 2 7 2 . . AOE 4 | . . . . . 4 Classes Destroyed 7 | . 1 1 2 . 3 Builder 1 | . . . . . 1 Swarmer 1 | . . 1 . . . Grunt 17 | . 2 6 . . 9 Duelist 2 | . . . . . 2 Sentry 1 | . . . 1 . . Programmer 2 | . . . . . 2 Subdweller 1 | . . . 1 . . Best Kill Streak 5 | . 2 4 1 . 5 Combat Bots Only 4 | . 2 4 1 . 4 Max Kills in Single Turn 3 | . 1 1 1 . 3 Gunslinging . | . . . . . . Exploded 3 | . . . . . 3 Melee 1 | . . . . . 1 Uniques/NPCs Destroyed . | . . . . . . Combat | -11 -10 -10 -10 -9 -6 -------- Run | Yrd Mat Min Sub Scr Fac Hostile Shots Fired 235 | . 15 28 17 . 175 Missed 55 | . 1 7 4 . 43 Hits 180 | . 14 21 13 . 132 Melee 11 | . . . . . 11 Projectile 169 | . 14 21 13 . 121 AOE 2 | . . . . . 2 Critical Strikes 10 | . . 1 2 . 7 Damage Taken 2553 | . 116 197 193 . 2047 Core 923 | . 34 23 14 . 852 Absorbed by Shields 80 | . . . . . 80 Ignored by Resistances 743 | . 38 62 55 . 588 Core Remaining (%) 85 | 100 . . . 71 . Volleys Fired 51 | . 17 17 13 . 4 Largest 2 | . 2 2 2 . 1 Hottest 85 | . 40 85 85 . 44 Shots Fired 98 | . 34 34 26 . 4 Gun 94 | . 34 34 26 . . Cannon 1 | . . . . . 1 Launcher 3 | . . . . . 3 Special . | . . . . . . Kinetic 78 | . 34 27 13 . 4 Thermal 20 | . . 7 13 . . Explosive . | . . . . . . Electromagnetic . | . . . . . . Robot Hit Streak 17 | . 12 16 8 . 17 Robot Miss Streak 3 | . 3 3 1 . . Penetration Max . | . . . . . . Secondary Targets . | . . . . . . Shots Hit Robots 116 | . 27 22 20 . 47 Core Hits 51 | . 6 15 5 . 25 Critical Kills 1 | . . 1 . . . Critical Parts Destroyed . | . . . . . . Critical Strikes 5 | . . 1 2 . 2 Burn 2 | . . . 2 . . Destroy 1 | . . 1 . . . Melee Attacks 45 | . . . . . 45 Impact . | . . . . . . Slashing 45 | . . . . . 45 Piercing . | . . . . . . Sneak Attacks 3 | . . . . . 3 Combat Hostiles 2 | . . . . . 2 Follow-up Attacks 2 | . . . . . 2 Damage Inflicted 3069 | . 280 236 233 . 2320 Guns 749 | . 280 236 233 . . Cannons 44 | . . . . . 44 Explosions 602 | . . . . . 602 Melee 1674 | . . . . . 1674 Ramming . | . . . . . . Kinetic 1184 | . 280 189 69 . 646 Thermal 211 | . . 47 164 . . Explosive . | . . . . . . Electromagnetic . | . . . . . . Impact . | . . . . . . Slashing 1674 | . . . . . 1674 Piercing . | . . . . . . Highest Corruption 2 | . . . . . 2 Average Corruption 1 | . . . . . 1 Corruption Purged . | . . . . . . Corruption Blocked . | . . . . . . Effects 4 | . . . . . 4 Message Errors 2 | . . . . . 2 Matter Fused 1 | . . . . . 1 Parts Fused 1 | . . . . . 1 Overload Shots . | . . . . . . Overflow Damage 77 | . . . . . 77 Projectiles . | . . . . . . Explosions 13 | . . . . . 13 Melee 64 | . . . . . 64 Knockbacks 1 | . . . . . 1 Impact . | . . . . . . Kinetic 1 | . . . . . 1 Secondary . | . . . . . . Self-Inflicted Damage . | . . . . . . Shots . | . . . . . . Rammed . | . . . . . . Targets Rammed . | . . . . . . Kicked . | . . . . . . Crushed . | . . . . . . Highest Temperature 154 | . 12 154 13 . 12 Average Temperature 27 | . 7 44 6 . 6 Received Heat Transfer 1009 | . 84 120 72 . 733 Siege Activations . | . . . . . . Martial Activations . | . . . . . . Shielding Activations . | . . . . . . Robots Disrupted 1 | . . . . . 1 Combat Hostiles 1 | . . . . . 1 Robots Corrupted . | . . . . . . Combat Hostiles . | . . . . . . Parts Fried . | . . . . . . Impact Corruptions . | . . . . . . Robots Melted . | . . . . . . Combat Hostiles . | . . . . . . Parts Melted 2 | . . 1 1 . . Heat Transferred 666 | . . 111 555 . . Parts Sabotaged . | . . . . . . Parts Stolen . | . . . . . . Parts Stripped . | . . . . . . Power Chain Reactions . | . . . . . . Alert | -11 -10 -10 -10 -9 -6 ------- Run | Yrd Mat Min Sub Scr Fac Maximum Alert Level . | . . . . . . Low Security (%) 100 | 100 100 100 . . 100 Level 1 . | . . . . . . Level 2 . | . . . . . . Level 3 . | . . . . . . Level 4 . | . . . . . . Level 5 . | . . . . . . High Security . | . . . . . . Max Security . | . . . . . . Peak Influence 118 | . 20 81 . . 118 Initial 6 | . . 6 . . . Average 20 | . 1 21 . . 24 Influence Increases 679 | . 40 221 20 . 398 Destroy 0b10 Robot/C 500 | . 40 180 20 . 260 Destroy 0b10 Robot/NC 5 | . . . . . 5 Destroy Leader 90 | . . 40 . . 50 Allied During Kill 1 | . . 1 . . . Successful Hack 10 | . . . . . 10 Disable Machine 18 | . . . . . 18 Destroy Structure 25 | . . . . . 25 Lose Combat Pursuer 30 | . . . . . 30 Influence Decreases 596 | . 20 241 20 . 315 Entered New Map 14 | . . 14 . . . Time Decay 467 | . 20 227 20 . 200 Lost Part 115 | . . . . . 115 Squads Dispatched 4 | . . . . . 4 Investigation . | . . . . . . Extermination 2 | . . . . . 2 Reinforcement 2 | . . . . . 2 Assault . | . . . . . . Garrison . | . . . . . . Intercept . | . . . . . . Searches Triggered . | . . . . . . Construction Impeded 1 | . . . . . 1 Haulers Reinforced . | . . . . . . Active Scanning Responses . | . . . . . . Cargo Convoy Interrupts . | . . . . . . Stealth | -11 -10 -10 -10 -9 -6 --------- Run | Yrd Mat Min Sub Scr Fac Distress Signals 1 | . 1 . . . . Communications Jammed . | . . . . . . Distress Signals . | . . . . . . Times Spotted 37 | . 4 9 2 . 22 Peak Tracking Total 8 | . 3 3 1 . 8 Tactical Retreats 2 | . . . . . 2 Traps | -11 -10 -10 -10 -9 -6 ------- Run | Yrd Mat Min Sub Scr Fac Traps Triggered . | . . . . . . Indirectly . | . . . . . . Trap Hack Attempts . | . . . . . . Triggered . | . . . . . . Disarmed . | . . . . . . Reprogrammed . | . . . . . . Reused . | . . . . . . Traps Extracted . | . . . . . . Installed . | . . . . . . Triggered . | . . . . . . Machines | -11 -10 -10 -10 -9 -6 ---------- Run | Yrd Mat Min Sub Scr Fac Machines Disabled 2 | . . . . . 2 Max in Single Turn 1 | . . . . . 1 Machines Repaired . | . . . . . . Machines Dismantled . | . . . . . . Machines Sabotaged . | . . . . . . Overloaded Fab Kills . | . . . . . . Hacking | -11 -10 -10 -10 -9 -6 --------- Run | Yrd Mat Min Sub Scr Fac Machines Accessed 12 | . 2 . 2 6 2 Terminals 2 | . 2 . . . . Fabricators . | . . . . . . Repair Stations . | . . . . . . Recycling Units 1 | . . . . . 1 Scanalyzers 1 | . . . . . 1 Garrison Access . | . . . . . . Total Hacks 38 | . 3 . 3 28 4 Successful 36 | . 2 . 3 28 3 Failed 2 | . 1 . . . 1 Catastrophic . | . . . . . . Database Lockouts . | . . . . . . Manual . | . . . . . . Terminals 3 | . 3 . . . . Fabricators . | . . . . . . Repair Stations . | . . . . . . Recycling Units 2 | . . . . . 2 Scanalyzers 2 | . . . . . 2 Garrison Access . | . . . . . . Terminal Hacks 33 | . 2 . 3 28 . Record 28 | . . . 1 27 . Open Door 2 | . . . 1 1 . Hauler Manifests 1 | . 1 . . . . Registered Components 1 | . 1 . . . . Release Object 1 | . . . 1 . . Fabricator Hacks . | . . . . . . Repair Station Hacks . | . . . . . . Recycling Unit Hacks 1 | . . . . . 1 Retrieve Components 1 | . . . . . 1 Scanalyzer 2 | . . . . . 2 Insert Component 1 | . . . . . 1 Analyze 1 | . . . . . 1 Garrison Access Hacks . | . . . . . . Unauthorized Hacks . | . . . . . . Terminals . | . . . . . . Fabricators . | . . . . . . Repair Stations . | . . . . . . Recycling Units . | . . . . . . Scanalyzers . | . . . . . . Garrison Access . | . . . . . . Data Cores Recovered . | . . . . . . Used . | . . . . . . Hacking Detections 3 | . 1 . . . 2 Full Trace Events . | . . . . . . Feedback Events . | . . . . . . Feedback Blocked . | . . . . . . Robot Schematics Acquired . | . . . . . . Robots Built . | . . . . . . Authchips . | . . . . . . Time . | . . . . . . Total Robot Build Rating . | . . . . . . Part Schematics Acquired 1 | . . . . . 1 Parts Built . | . . . . . . Authchips . | . . . . . . Time . | . . . . . . Total Part Build Rating . | . . . . . . Parts Repaired . | . . . . . . Time . | . . . . . . Parts Recycled . | . . . . . . Recycled Matter . | . . . . . . Retrieved Matter . | . . . . . . Retrieved Components 10 | . . . . . 10 Parts Scanalyzed 1 | . . . . . 1 Part Schematics Acquired 1 | . . . . . 1 Parts Damaged . | . . . . . . Bothacking | -11 -10 -10 -10 -9 -6 ------------ Run | Yrd Mat Min Sub Scr Fac Used RIF Installer . | . . . . . . Robots Hacked . | . . . . . . Non-combat . | . . . . . . Combat . | . . . . . . Robot Hacks Applied . | . . . . . . Relay Couplers Released . | . . . . . . Fabnet Peak Effective % . | . . . . . . Robots Rewired . | . . . . . . Allies Hacked . | . . . . . . Hacks Repelled . | . . . . . . Allies | -11 -10 -10 -10 -9 -6 -------- Run | Yrd Mat Min Sub Scr Fac Total Allies 1 | . . 1 . . . Largest Group 1 | . . 1 . . . Highest-Rated Group 31 | . . 31 . . . Highest-Rated Ally 31 | . . 31 . . . Total Orders . | . . . . . . Ally Attacks 4 | . . 4 . . . Total Damage 42 | . . 42 . . . Kills 2 | . . 2 . . . Allies Corrupted . | . . . . . . Allies Melted . | . . . . . . Intel | -11 -10 -10 -10 -9 -6 ------- Run | Yrd Mat Min Sub Scr Fac Active Infowar (turns) . | . . . . . . Robot Analysis Total . | . . . . . . Derelict Logs Recovered 4 | . . 1 1 2 . Drone Launches . | . . . . . . Drone Recoveries . | . . . . . . Exploration | -11 -10 -10 -10 -9 -6 ------------- Run | Yrd Mat Min Sub Scr Fac Turns Passed 4593 | 62 221 674 531 2049 1056 Spaces Moved 2945 | 49 143 497 398 1429 429 Core 71 | 14 . . . . 57 Treads . | . . . . . . Legs 2874 | 35 143 497 398 1429 372 Wheels . | . . . . . . Hover . | . . . . . . Flight . | . . . . . . Fastest Speed 50 | 50 120 120 120 120 100 Average Speed 143 | 100 120 120 120 142 211 Slowest Speed 550 | 120 120 120 120 190 550 Overloaded Moves . | . . . . . . Propulsion Burnouts . | . . . . . . Robots Hopped . | . . . . . . Potential Cave-ins . | . . . . . . Cave-ins Triggered . | . . . . . . Exploration Rate (%) 43 | 3 42 87 27 89 12 Regions Visited 5 Branch Regions 3 Pre-discovered Areas 1 | . . . . 1 . Known Exits Taken 3 | . 1 1 1 . . Unknown Exits Taken 2 | 1 . . . 1 . Scrap Searched 11 | . . 1 2 8 . Spaces Dug . | . . . . . . Terrain Destroyed 25 | . . . . . 25 Melee . | . . . . . . Projectile . | . . . . . . AOE 25 | . . . . . 25 Terrain Rammed . | . . . . . . Walls Destroyed . | . . . . . . Machines Disabled . | . . . . . . Actions | -11 -10 -10 -10 -9 -6 --------- Run | Yrd Mat Min Sub Scr Fac Total 3163 | 62 162 547 428 1451 513 Wait 23 | . . 14 1 . 8 Move 2940 | 48 142 496 397 1428 429 Hop . | . . . . . . Pick Up 40 | 8 2 9 3 9 9 Fast Attach 6 | . . 1 2 1 2 Attach 24 | 6 1 . 1 3 13 Detach 3 | . . . . . 3 Swap 9 | . . 4 4 1 . Drop 23 | . . 6 6 9 2 Fire 51 | . 17 17 13 . 4 Melee 43 | . . . . . 43 Ram . | . . . . . . Kick . | . . . . . . Crush . | . . . . . . Escape Stasis . | . . . . . . Rewire . | . . . . . . Trap . | . . . . . . Miscellaneous 1 | . . . 1 . . Route ------- -11/Scrapyard -10/Materials (discovered 2 exits: *Mat / *Min) -10/Mines (discovered 3 exits: *Mat x2 / *Sub) -10/Subcaves -9/Scraptown -6/Factory (discovered 1 exit: [*Low]) History --------- Turn | Location | Event 9 | -11/Scrapyard | Discovered new exit (range 16) 63 | -11/Scrapyard | Entered Materials 210 | -10/Materials | Discovered new exit (range 16) 228 | -10/Materials | Discovered new exit (range 15) 253 | -10/Materials | Identified exit to Mines 284 | -10/Materials | Entered Mines 338 | -10/Mines | Build established: Mutant 382 | -10/Mines | Discovered new exit (range 10) 489 | -10/Mines | Received a Mining Laser from a helpful Derelict 577 | -10/Mines | Identified exit to Subcaves 620 | -10/Mines | Received a Rocket Launcher from a helpful Derelict 799 | -10/Mines | Discovered new exit (range 14) 925 | -10/Mines | Identified exit to Materials 958 | -10/Mines | Entered Subcaves 959 | -10/Subcaves | Approached by a straggling Scientist 1206 | -10/Subcaves | Released subatomizers from SUBCON Basin 1344 | -10/Subcaves | Learned Materials stockpile data 1370 | -10/Subcaves | Disturbed a concealed Subdweller 1480 | -10/Subcaves | Scientist uncovered a shortcut to Scraptown 1487 | -10/Subcaves | Identified exit to Scraptown 1489 | -10/Subcaves | Entered Scraptown 1699 | -9/Scraptown | Scanned Subdweller tech in exchange for log data 1703 | -9/Scraptown | Learned location of Warlord (-4) 1735 | -9/Scraptown | Visited Bundlers 1787 | -9/Scraptown | Heard Great Nut preacher, LISTEN AND RECITE! 1788 | -9/Scraptown | Visited SPCMW 1867 | -9/Scraptown | Visited Red Mages 1914 | -9/Scraptown | Visited Shadow of the Wyrm 1944 | -9/Scraptown | Visited UFD Registry 1944 | -9/Scraptown | Registered with UFD as "Nullgunner" 1960 | -9/Scraptown | Visited Cyclists 1972 | -9/Scraptown | Entered Cyclist Reading Room 2013 | -9/Scraptown | Visited Awakened 2032 | -9/Scraptown | Visited The Evicted 2280 | -9/Scraptown | Visited Abandonware Association 2292 | -9/Scraptown | Learned abandonware demo "REPAIR.EXE" 2320 | -9/Scraptown | Visited Sword Containment 2365 | -9/Scraptown | Visited A0-MCA Data Center 2372 | -9/Scraptown | Given a C rating by A0-MCA 2375 | -9/Scraptown | Found A0-MCA's Component Scanner 2414 | -9/Scraptown | Delivered Scrap Shield to a Scientist 2568 | -9/Scraptown | Visited Infowarlord's Domain 2576 | -9/Scraptown | Found Exp. Signal Interpreter 2602 | -9/Scraptown | Visited Scrapoid Pod Storage 2609 | -9/Scraptown | Found Scrapoid Pod 2629 | -9/Scraptown | Visited DA-N13 Charitable Foundation 2634 | -9/Scraptown | Found DCF Scrap (30 items) 2670 | -9/Scraptown | Visited Supply Room 2861 | -9/Scraptown | Visited Observation Area 2939 | -9/Scraptown | Visited Science Testing Area 2970 | -9/Scraptown | Visited Chapter 10 3416 | -9/Scraptown | Met Optimus 3416 | -9/Scraptown | Accepted into 0bPrime 3528 | -9/Scraptown | Discovered new exit (range 5) 3538 | -9/Scraptown | Entered Factory 3538 | -6/Factory | Evolved 8 slots: Power x1, Propulsion x2, Utility x5 3561 | -6/Factory | Discovered new exit (range 8) 4345 | -6/Factory | Core integrity fell below 50% 4394 | -6/Factory | Lost 10 parts (2p3n4u1w) 4583 | -6/Factory | Core integrity fell below 20% 4594 | -6/Factory | Destroyed by G-50 Soldier with Heavy Laser Last Messages --------------- U-05 Engineer builds a Wall. U-05 Engineer lays Concrete. Dropped Hvy. Flak Cannon. Dropped Missile Launcher. Acquired Carbon-fiber Leg. Acquired Flexi-carbon Leg. R-10 Processor collects Hvy. Flak Cannon. R-10 Processor collects Missile Launcher. K-01 Serf cleans the Fusion Modulator. ONR6&>HIATVQA05G#LBXJHBCZP6B#MYT3%PSC Angular Momentum Engine severed. Companion Sword: "Are we going to die?" A0-MCA's Component Scanner severed. R-10 Processor collects Angular Momentum Engine. Exp. Signal Interpreter severed. Companion Sword: "This might hurt a bit..." L-41 Fighter destroyed. R-10 Processor collects Imp. Melee Analysis Suite. Acquired 66 matter. Map ----- +----------------------------------------------------+ | ?????????????????????????????????????????????????? | | ?????????????????????????????????????????????????? | | ?????????????? ??????????????????????????????????? | | ???#?????? ?? #????????????????????????????????? | | ???# ????? ?? #????????????????????????????????? | | ???# ???? ?? #????????????????????????????????? | | ???# """? ?? #????????????????????????????????? | | ???# """? ?? ##???????????????????????????????? | | ???#" """? ?# ##???????????????????????????????? | | #??#T ? ## ##???????????????????????????????? | | ""## ? "#% "#???????????????????????????????? | | "" = ? ## % ###?????#????????????????????????? | | ########## % ##??? ????????????????????????? | | ### ????????????????????????? | | "??????????????????????????? | | % % ##??? ??????????????????????????? | | % % "#?? ??????????????????????????? | | ####??# ??????????????? ?????????? | | #####?# #????????????? ??????????? | | # #?# ##?????????? ???????????? | | "" " #####+### #?#p ?????????? ?????????????? | | # # ####R#####?####/#######????????? | | """" # # =# R #? #????????? | | """" #### # # """"" # #????????? | | """" #?# # # """"" # g ?????????? | | """" #?# # #*"""[R@/g """ "????????????? | | """" #?## # % # ![*/*! # """ "????????????? | | ?""" #??# #+#### # " "! # """ ?????????????? | | ?? ???### # ### "Y" #? ????????????? | | ?? ?????# ####?# """ #? """ ""???????????? | | ?? ????? ??? + #?? """ ""???????????? | | ?? ???? ##??############?? """ ?????????????? | | ??? ???? ??????????????????? ??????????????? | | ???????? ??????????????????? ??????????????? | | ???????#####????????????????????#+##?????????????? | | ?????????????????????????????????????????????????? | | ???????????????????????????????????????????????? | | ???????????????????????????????????????????????? | | ?????????????????????????????????????????????????? | | ?????????????????????????????????????????????????? | | ?????????????????????????????????????????????????? | | ?????????????????????????????????????????????????? | | ?????????????????????????????????????????????????? | | ?????????????????????????????????????????????????? | | ?????????????????????????????????????????????????? | | ?????????????????????????????????????????????????? | | ?????????????????????????????????????????????????? | | ?????????????????????????????????????????????????? | | ############?????????????????????????????????????? | | + #?????????????????????????????????????? | +----------------------------------------------------+ Best States ------------- Heat Dissipation 51 Energy Generation 23 Energy Capacity 455 Matter Stores 300 Matter Capacity 300 Sight Range 16 Terrain Scan Density 10 Resistance: KI 20 Resistance: TH 20 Resistance: EX 20 Resistance: EM 20 Resistance: I 20 Resistance: S 20 Resistance: P 20 Phase Shifting 5 Evasion (%) 55 Offensive Hacking 10 Item Schematics ----------------- Sub. Shrapnel Launcher | -6/Factory | Scanalyzed Robot Schematics ------------------ None Fabricated ------------ Nothing Repaired ---------- Nothing Alien Tech Used ----------------- None Achievements -------------- None Challenges ------------ None Game ------ Seed NuclearNovaFlightbrick Manual? 0 Play Time 00:30:24 Cumulative 83.3 hours Start 2025.07.26 @ 09:19:46 End 2025.07.26 @ 09:50:13 Sessions 1 Manual Loads 0 Difficulty Adventurer Special Mode None Game No. 107 Rogue 13 Adventurer 94 Explorer 0 Win Type - Total 0 Types 0/0/0/0/0/0/0/0/0/0 Lore% 63 Gallery% 58 Achievement% 46 Wizard Run 0 Options --------- Layout 1 ASCII 0 Keyboard 0 Movement Mouse Keybinds 0 Fullscreen 1 Font 32/SmallcapsGlow Map View 50x35 Zoom Use 0% Tactical HUD 0 Map Filters NONE Filters NONE Steam 1 RUN: 5c80e1f8-73d6-4b06-b0c6-8445ada6957a